lending/lending_fUSD_20250122
["ID","MTS","AMOUNT","RATE_DAILY","PERIOD"]
[349958125,1737535871006,-2511.45,0.00021363,2]
[349958126,1737535871017,-500.0,0.00021363,2]
[349958127,1737535871028,-500.0,0.00021363,2]
[349958128,1737535871037,-1206.52,0.00021363,2]
[349958129,1737535871047,-4007.33,0.00021363,2]
[349958130,1737535871056,-2492.62,0.00021363,2]
[349958131,1737535871066,-1678.2,0.00021363,2]
[349958132,1737535871075,-1512.08,0.00021363,2]
[349958133,1737535871085,-500.0,0.00021363,2]
[349958134,1737535871095,-956.5,0.00021363,2]
[349958135,1737535871106,-500.0,0.00021363,2]
[349958136,1737535871117,-500.0,0.00021363,2]
[349958137,1737535871127,-859.9,0.00021363,2]
[349958138,1737535871137,-564.94,0.00021363,2]
[349958139,1737535871147,-500.0,0.00021363,2]
[349958140,1737535871156,-500.0,0.00021363,2]
[349958141,1737535871166,-790.06,0.00021363,2]
[349958142,1737535871175,-2269.74,0.00021363,2]
[349958143,1737535871185,-500.0,0.00021363,2]
[349958144,1737535871194,-4879.48,0.00021363,2]
[349958145,1737535871204,-500.0,0.00021363,2]
[349958146,1737535871213,-1144.32,0.00021363,2]
[349958147,1737535871223,-500.0,0.00021363,2]
[349958148,1737535871233,-2054.82,0.00021363,2]
[349958149,1737535871242,-827.92,0.00021363,2]
[349958150,1737535871252,-1961.71,0.00021363,2]
[349958151,1737535871262,-1416.44,0.00021363,2]
[349958152,1737535871271,-3220.53,0.00021363,2]
[349958153,1737535871281,-2309.19,0.00021363,2]
[349958154,1737535871290,-1086.97,0.00021363,2]
[349958155,1737535871299,-836.64,0.00021363,2]
[349958156,1737535871309,-1125.48,0.00021363,2]
[349958157,1737535871318,-1355.86,0.00021363,2]
[349958158,1737535871328,-537.78,0.00021363,2]
[349958159,1737535871338,-644.18,0.00021363,2]
[349958160,1737535871347,-4222.06,0.00021363,2]
[349958161,1737535871356,-1148.64,0.00021363,2]
[349958162,1737535871366,-1996.49,0.00021363,2]
[349958163,1737535871375,-3033.92,0.00021363,2]
[349958164,1737535871385,-500.0,0.00021363,2]
[349958165,1737535871395,-2532.04,0.00021363,2]
[349958166,1737535871404,-574.92,0.00021363,2]
[349958167,1737535871413,-940.76,0.00021363,2]
[349958168,1737535871422,-500.0,0.00021363,2]
[349958169,1737535871431,-1198.58,0.00021363,2]
[349958170,1737535871441,-1231.92,0.00021363,2]
[349958171,1737535871450,-1021.16,0.00021363,2]
[349958172,1737535871461,-500.0,0.00021363,2]
[349958173,1737535871470,-850.43,0.00021363,2]
[349958174,1737535871480,-626.58,0.00021363,2]
[349958175,1737535871490,-1522.34,0.00021363,2]
[349958176,1737535871501,-1365.0,0.00021363,2]
[349958177,1737535871511,-168.074362,0.00021363,2]
[349958178,1737535871521,-603.87,0.00021363,2]
[349958179,1737535871530,-205.18,0.00021363,2]
[349958180,1737535871540,-168.074362,0.00021363,2]
[349958181,1737535871550,-1288.07,0.00021363,2]
[349958182,1737535871559,-844.42,0.00021363,2]
[349958183,1737535871569,-566.83,0.00021363,2]
[349958184,1737535871579,-537.66,0.00021363,2]
[349958185,1737535871588,-511.79,0.00021363,2]
[349958186,1737535871598,-913.82,0.00021363,2]
[349958187,1737535871607,-2700.97,0.00021363,2]
[349958188,1737535871617,-500.0,0.00021363,2]
[349958189,1737535871627,-500.0,0.00021363,2]
[349958190,1737535871636,-1158.45,0.00021363,2]
[349958191,1737535871646,-500.0,0.00021363,2]
[349958192,1737535871656,-872.83,0.00021363,2]
[349958193,1737535871665,-2209.36,0.00021363,2]
[349958194,1737535871675,-3528.61,0.00021363,2]
[349958195,1737535871685,-773.09,0.00021363,2]
[349958196,1737535871694,-614.04,0.00021363,2]
[349958197,1737535871703,-1417.55,0.00021363,2]
[349958198,1737535871713,-1067.42,0.00021363,2]
[349958199,1737535871723,-2595.8,0.00021363,2]
[349958200,1737535871732,-633.97,0.00021363,2]
[349958201,1737535871741,-500.0,0.00021363,2]
[349958202,1737535871751,-628.26,0.00021363,2]
[349958203,1737535871760,-1154.33,0.00021363,2]
[349958204,1737535871769,-500.0,0.00021363,2]
[349958205,1737535871779,-500.0,0.00021363,2]
[349958206,1737535871789,-1232.72,0.00021363,2]
[349958207,1737535871800,-4385.76,0.00021363,2]
[349958208,1737535871809,-500.0,0.00021363,2]
[349958209,1737535871820,-1178.01,0.00021363,2]
[349958210,1737535871829,-500.0,0.00021363,2]
[349958211,1737535871839,-851.04,0.00021363,2]
[349958212,1737535871849,-844.74,0.00021363,2]
[349958213,1737535871859,-500.0,0.00021363,2]
[349958214,1737535871868,-2089.41,0.00021363,2]
[349958215,1737535871878,-577.47,0.00021363,2]
[349958216,1737535871887,-690.97,0.00021363,2]
[349958217,1737535871897,-1722.38,0.00021363,2]
[349958218,1737535871906,-1001.69,0.00021363,2]
[349958219,1737535871916,-799.05,0.00021363,2]
[349958220,1737535871926,-1433.52,0.00021363,2]
[349958221,1737535871939,-680.57,0.00021363,2]
[349958222,1737535871948,-866.15,0.00021363,2]
[349958223,1737535871958,-500.0,0.00021363,2]
[349958224,1737535871968,-500.0,0.00021363,2]
[349958225,1737535871979,-525.26,0.00021363,2]
[349958226,1737535871989,-658.51,0.00021363,2]
[349958227,1737535871998,-1460.47,0.00021363,2]
[349958228,1737535872008,-500.0,0.00021363,2]
[349958229,1737535872018,-1012.24,0.00021363,2]
[349958230,1737535872027,-703.88,0.00021363,2]
[349958231,1737535872037,-500.0,0.00021363,2]
[349958232,1737535872047,-500.0,0.00021363,2]
[349958233,1737535872056,-2713.11,0.00021363,2]
[349958234,1737535872065,-2398.07,0.00021363,2]
[349958235,1737535872075,-508.44,0.00021363,2]
[349958236,1737535872084,-2259.96,0.00021363,2]
[349958237,1737535872094,-500.0,0.00021363,2]
[349958238,1737535872104,-500.0,0.00021363,2]
[349958239,1737535872114,-1542.11,0.00021363,2]
[349958240,1737535872123,-1046.31,0.00021363,2]
[349958241,1737535872134,-876.07,0.00021363,2]
[349958242,1737535872144,-2654.27,0.00021363,2]
[349958243,1737535872156,-500.0,0.00021363,2]
[349958244,1737535872166,-588.37,0.00021363,2]
[349958245,1737535872177,-1263.25,0.00021363,2]
[349958246,1737535872186,-623.1,0.00021364,2]
[349958247,1737535872195,-500.0,0.00021364,2]
[349958248,1737535872204,-500.0,0.00021364,2]
[349958249,1737535872213,-500.0,0.00021364,2]
[349958250,1737535872223,-500.0,0.00021364,2]
[349958251,1737535872232,-500.0,0.00021364,2]
[349958252,1737535872242,-500.0,0.00021364,2]
[349958253,1737535872251,-906.12,0.00021364,2]
[349958254,1737535872260,-500.0,0.00021364,2]
[349958255,1737535872269,-500.0,0.00021364,2]
[349958256,1737535872278,-500.0,0.00021364,2]
[349958257,1737535872287,-557.75,0.00021364,2]
[349958258,1737535872297,-444.5814972,0.00021364,2]
[349958259,1737535872306,-500.0,0.00021364,2]
[349958260,1737535872315,-500.0,0.00021364,2]
[349958261,1737535872324,-523.97,0.00021364,2]
[349958262,1737535872333,-500.0,0.00021364,2]
[349958263,1737535872342,-684.22,0.00021364,2]
[349958264,1737535872351,-199.11235798,0.00021364,2]
[349958265,1737535872361,-500.76,0.00021364,2]
[349958266,1737535872370,-500.0,0.00021364,2]
[349958267,1737535872379,-500.0,0.00021364,2]
[349958268,1737535872388,-500.0,0.00021364,2]
[349958269,1737535872397,-500.0,0.00021364,2]
[349958270,1737535872406,-500.0,0.00021364,2]
[349958271,1737535872415,-500.0,0.00021364,2]
[349958272,1737535872424,-500.0,0.00021364,2]
[349958273,1737535872433,-891.46,0.00021364,2]
[349958274,1737535872442,-626.77,0.00021364,2]
[349958275,1737535872451,-974.67,0.00021364,2]
[349958276,1737535872462,-500.0,0.00021364,2]
[349958277,1737535872470,-500.0,0.00021364,2]
[349958278,1737535872480,-667.94,0.00021364,2]
[349958279,1737535872489,-1171.25,0.00021364,2]
[349958280,1737535872499,-720.08,0.00021364,2]
[349958281,1737535872508,-1121.27,0.00021364,2]
[349958282,1737535872517,-761.43,0.00021364,2]
[349958283,1737535872526,-500.0,0.00021364,2]
[349958284,1737535872535,-885.44,0.00021364,2]
[349958285,1737535872544,-593.11,0.00021364,2]
[349958286,1737535872554,-810.91,0.00021364,2]
[349958287,1737535872564,-500.0,0.00021364,2]
[349958288,1737535872574,-797.59,0.00021364,2]
[349958289,1737535872584,-500.0,0.00021364,2]
[349958290,1737535872593,-500.0,0.00021364,2]
[349958291,1737535872603,-607.39,0.00021364,2]
[349958292,1737535872612,-500.0,0.00021364,2]
[349958293,1737535872622,-500.0,0.00021364,2]
[349958294,1737535872632,-500.0,0.00021364,2]
[349958295,1737535872641,-669.28,0.00021364,2]
[349958296,1737535872650,-500.0,0.00021364,2]
[349958297,1737535872659,-500.0,0.00021364,2]
[349958298,1737535872668,-500.0,0.00021364,2]
[349958299,1737535872677,-500.0,0.00021364,2]
[349958300,1737535872687,-500.0,0.00021364,2]
[349958301,1737535872696,-822.84,0.00021364,2]
[349958302,1737535872706,-984.18,0.00021364,2]
[349958303,1737535872715,-1080.22,0.00021364,2]
[349958304,1737535872725,-500.0,0.00021364,2]
[349958305,1737535872734,-500.0,0.00021364,2]
[349958306,1737535872743,-500.0,0.00021364,2]
[349958307,1737535872752,-500.0,0.00021364,2]
[349958308,1737535872762,-500.0,0.00021364,2]
[349958309,1737535872771,-502.19,0.00021364,2]
[349958310,1737535872780,-500.0,0.00021364,2]
[349958311,1737535872790,-160.25610185,0.00021364,2]
[349958312,1737535872800,-543.73,0.00021364,2]
[349958313,1737535872809,-649.78977732,0.00021364,2]
[349958314,1737535872818,-500.0,0.00021364,2]
[349958315,1737535872827,-1225.68,0.00021364,2]
[349958316,1737535872836,-1080.05,0.00021364,2]
[349958317,1737535872846,-500.0,0.00021364,2]
[349958318,1737535872855,-1315.5,0.00021364,2]
[349958319,1737535872864,-5326.32,0.00021364,2]
[349958320,1737535872874,-1134.22,0.00021364,2]
[349958321,1737535872882,-8872.35,0.00021364,2]
[349958322,1737535872891,-548.7,0.00021364,2]
[349958323,1737535872901,-500.0,0.00021364,2]
[349958324,1737535872910,-1108.55,0.00021364,2]
[349958325,1737535872919,-500.0,0.00021364,2]
[349958326,1737535872930,-500.0,0.00021364,2]
[349958327,1737535872942,-533.36,0.00021364,2]
[349958328,1737535872951,-879.16,0.00021364,2]
[349958329,1737535872962,-666.0,0.00021364,2]
[349958330,1737535872972,-500.0,0.00021364,2]
[349958331,1737535872983,-2887.3,0.00021364,2]
[349958332,1737535872992,-500.0,0.00021364,2]
[349958333,1737535873001,-500.0,0.00021364,2]
[349958334,1737535873012,-1192.26,0.00021364,2]
[349958335,1737535873022,-1613.65,0.00021364,2]
[349958336,1737535873031,-840.93,0.00021364,2]
[349958337,1737535873042,-1815.41,0.00021364,2]
[349958338,1737535873051,-627.34,0.00021364,2]
[349958339,1737535873062,-552.73,0.00021364,2]
[349958340,1737535873071,-500.0,0.00021364,2]
[349958341,1737535873080,-1000.0,0.00021364,2]
[349958342,1737535873090,-844.08,0.00021364,2]
[349958343,1737535873099,-500.0,0.00021364,2]
[349958344,1737535873109,-500.0,0.00021364,2]
[349958345,1737535873119,-500.0,0.00021364,2]
[349958346,1737535873128,-2817.94,0.00021364,2]
[349958347,1737535873138,-1195.95,0.00021364,2]
[349958348,1737535873147,-500.0,0.00021364,2]
[349958349,1737535873158,-2298.19,0.00021364,2]
[349958350,1737535873167,-721.13,0.00021364,2]
[349958351,1737535873176,-537.9,0.00021364,2]
[349958352,1737535873186,-1122.6,0.00021364,2]
[349958353,1737535873195,-1284.0,0.00021364,2]
[349958354,1737535873205,-584.46,0.00021364,2]
[349958355,1737535873215,-793.95,0.00021365,2]
[349958356,1737535873224,-710.25,0.00021365,2]
[349958357,1737535873355,-500.0,0.00021365,2]
[349958358,1737535873367,-500.0,0.00021365,2]
[349958359,1737535873376,-500.0,0.00021365,2]
[349958360,1737535873386,-1448.78,0.00021365,2]
[349958361,1737535873395,-1032.82,0.00021365,2]
[349958362,1737535873405,-1224.48,0.00021365,2]
[349958363,1737535873414,-565.46,0.00021365,2]
[349958364,1737535873424,-500.0,0.00021365,2]
[349958365,1737535873434,-500.0,0.00021365,2]
[349958366,1737535873443,-500.0,0.00021365,2]
[349958367,1737535873452,-500.0,0.00021365,2]
[349958368,1737535873462,-152.0,0.00021371,3]
[349958369,1737535873471,-150.0,0.00021389,4]
[349958370,1737535873481,-220.0,0.0002139,2]
[349958371,1737535873492,-500.0,0.0002141,2]
[349958372,1737535873503,-992.43,0.00021411,7]
[349958373,1737535873512,-992.43,0.00021411,7]
[349958374,1737535873521,-992.43,0.00021411,7]
[349958375,1737535873531,-992.43,0.00021411,7]
[349958376,1737535873541,-500.0,0.00021452,2]
[349958377,1737535873551,-205.26902049,0.00021456,2]
[349958378,1737535873560,-2110.0,0.000215,2]
[349958379,1737535873570,-3663.64654637,0.000215,3]
[349958380,1737535873840,-6336.35345363,0.000215,3]
[349958381,1737535873850,-254.37,0.0002151,2]
[349958382,1737535873859,-179.38451183,0.00021533,2]
[349958383,1737535873868,-168.24240216,0.00021537,2]
[349958384,1737535873878,-500.0,0.00021547,2]
[349958385,1737535873887,-150.0,0.00021562,4]
[349958386,1737535873897,-205.26902049,0.00021567,2]
[349958387,1737535873906,-864.33043042,0.00021614,2]
[349958388,1737535873915,-432.61797383,0.00021614,2]
[349958389,1737535873925,-450.0,0.00021616,2]
[349958390,1737535873936,-500.0,0.00021637,2]
[349958391,1737535873945,-687.92,0.00021637,2]
[349958392,1737535873954,-829.09,0.00021637,2]
[349958393,1737535873965,-500.0,0.00021637,2]
[349958394,1737535873974,-500.0,0.00021637,2]
[349958395,1737535873983,-706.98,0.00021637,2]
[349958396,1737535873993,-524.39,0.00021637,2]
[349958397,1737535874002,-500.0,0.00021637,2]
[349958398,1737535874013,-500.0,0.00021637,2]
[349958399,1737535874022,-555.75,0.00021637,2]
[349958400,1737535874031,-882.85,0.00021637,2]
[349958401,1737535874040,-974.81,0.00021637,2]
[349958402,1737535874050,-500.0,0.00021637,2]
[349958403,1737535874059,-500.0,0.00021637,2]
[349958404,1737535874069,-1033.33,0.00021637,2]
[349958405,1737535874078,-881.186028,0.00021637,2]
[349958406,1737535874089,-668.82,0.00021637,2]
[349958407,1737535874098,-584.92,0.00021637,2]
[349958408,1737535874108,-597.75,0.00021637,2]
[349958409,1737535874118,-1383.258647,0.00021637,2]
[349958410,1737535874130,-500.0,0.00021637,2]
[349958411,1737535874140,-500.0,0.00021637,2]
[349958412,1737535874151,-1189.34,0.00021637,2]
[349958413,1737535874160,-500.0,0.00021637,2]
[349958414,1737535874170,-500.0,0.00021637,2]
[349958415,1737535874181,-708.96,0.00021637,2]
[349958416,1737535874191,-664.95,0.00021637,2]
[349958417,1737535874199,-1395.76,0.00021637,2]
[349958418,1737535874209,-567.8,0.00021637,2]
[349958419,1737535874218,-500.0,0.00021637,2]
[349958420,1737535874227,-1026.06,0.00021637,2]
[349958421,1737535874236,-512.38152408,0.00021637,2]
[349958422,1737535874246,-500.0,0.00021637,2]
[349958423,1737535874255,-553.55,0.00021637,2]
[349958424,1737535874264,-500.0,0.00021637,2]
[349958425,1737535874273,-1399.0,0.00021637,2]
[349958426,1737535874283,-897.03,0.00021637,2]
[349958427,1737535874292,-500.0,0.00021637,2]
[349958428,1737535874302,-880.39,0.00021637,2]
[349958429,1737535874311,-500.0,0.00021637,2]
[349958430,1737535874320,-1082.05,0.00021637,2]
[349958431,1737535874329,-1124.96,0.00021637,2]
[349958432,1737535874338,-264.65275406,0.00021637,2]
[349958433,1737535874347,-791.67,0.00021637,2]
[349958434,1737535874355,-659.65,0.00021637,2]
[349958435,1737535874365,-897.68,0.00021637,2]
[349958436,1737535874374,-1008.18,0.00021637,2]
[349958437,1737535874384,-1914.1,0.00021637,2]
[349958438,1737535874393,-500.0,0.00021637,2]
[349958439,1737535874402,-805.46,0.00021637,2]
[349958440,1737535874411,-2511.45,0.00021637,2]
[349958441,1737535874420,-500.0,0.00021637,2]
[349958442,1737535874429,-500.0,0.00021637,2]
[349958443,1737535874439,-1206.52,0.00021637,2]
[349958444,1737535874448,-4007.33,0.00021637,2]
[349958445,1737535874458,-2492.62,0.00021637,2]
[349958446,1737535874467,-1678.2,0.00021637,2]
[349958447,1737535874477,-1512.08,0.00021637,2]
[349958448,1737535874489,-448.04409561,0.00021637,2]
[349958449,1737535874499,-956.5,0.00021637,2]
[349958450,1737535874508,-500.0,0.00021637,2]
[349958451,1737535874518,-500.0,0.00021637,2]
[349958452,1737535874527,-859.9,0.00021637,2]
[349958453,1737535874536,-564.94,0.00021637,2]
[349958454,1737535874546,-500.0,0.00021637,2]
[349958455,1737535874557,-431.77912615,0.00021637,2]
[349958456,1737535874568,-790.06,0.00021637,2]
[349958457,1737535874577,-2269.74,0.00021637,2]
[349958458,1737535874587,-500.0,0.00021637,2]
[349958459,1737535874596,-4879.48,0.00021637,2]
[349958460,1737535874606,-500.0,0.00021637,2]
[349958461,1737535874616,-1144.32,0.00021637,2]
[349958462,1737535874625,-500.0,0.00021637,2]
[349958463,1737535874635,-2054.82,0.00021637,2]
[349958464,1737535874644,-827.92,0.00021637,2]
[349958465,1737535874654,-1961.71,0.00021637,2]
[349958466,1737535874663,-1416.44,0.00021637,2]
[349958467,1737535874674,-3220.53,0.00021637,2]
[349958468,1737535874684,-2309.19,0.00021637,2]
[349958469,1737535874693,-1086.97,0.00021637,2]
[349958470,1737535874703,-836.64,0.00021637,2]
[349958471,1737535874713,-1125.48,0.00021637,2]
[349958472,1737535874722,-1355.86,0.00021637,2]
[349958473,1737535874732,-537.78,0.00021637,2]
[349958474,1737535874742,-644.18,0.00021637,2]
[349958475,1737535874752,-4222.06,0.00021637,2]
[349958476,1737535874762,-1148.64,0.00021637,2]
[349958477,1737535874772,-1996.49,0.00021637,2]
[349958478,1737535874782,-3033.92,0.00021637,2]
[349958479,1737535874793,-500.0,0.00021637,2]
[349958480,1737535874802,-2532.04,0.00021637,2]
[349958481,1737535874812,-574.92,0.00021637,2]
[349958482,1737535874823,-940.76,0.00021637,2]
[349958483,1737535874833,-324.72497776,0.00021637,2]
[349958484,1737535874843,-1198.58,0.00021637,2]
[349958485,1737535874853,-1231.92,0.00021637,2]
[349958486,1737535874862,-1021.16,0.00021637,2]
[349958487,1737535874872,-500.0,0.00021637,2]
[349958488,1737535874882,-361.82660706,0.00021637,2]
[349958489,1737535874896,-488.60339294,0.00021637,2]
[349958490,1737535874906,-230.22672315,0.00021637,2]
[349958491,1737535874918,-396.35327685,0.00021637,2]
[349958492,1737535874928,-1522.34,0.00021637,2]
[349958493,1737535874945,-1365.0,0.00021637,2]
[349958494,1737535874955,-603.87,0.00021637,2]
[349958495,1737535874966,-1288.07,0.00021637,2]
[349958496,1737535874978,-844.42,0.00021637,2]
[349958497,1737535874989,-566.83,0.00021637,2]
[349958498,1737535875000,-537.66,0.00021637,2]
[349958499,1737535875014,-511.79,0.00021637,2]
[349958500,1737535875024,-913.82,0.00021637,2]
[349958501,1737535875034,-2700.97,0.00021637,2]
[349958502,1737535875045,-500.0,0.00021637,2]
[349958503,1737535875056,-500.0,0.00021637,2]
[349958504,1737535875068,-1158.45,0.00021637,2]
[349958505,1737535875079,-621.55,0.00021637,2]
[349958506,1737535875089,-872.83,0.00021637,2]
[349958507,1737535875100,-1363.20605835,0.00021637,2]
[349958508,1737535875113,-846.15394165,0.00021637,2]
[349958509,1737535875123,-3528.61,0.00021637,2]
[349958510,1737535875132,-773.09,0.00021637,2]
[349958511,1737535875142,-614.04,0.00021637,2]
[349958512,1737535875152,-1417.55,0.00021637,2]
[349958513,1737535875161,-1067.42,0.00021637,2]
[349958514,1737535875172,-2595.8,0.00021637,2]
[349958515,1737535875181,-633.97,0.00021637,2]
[349958516,1737535875192,-500.0,0.00021637,2]
[349958517,1737535875201,-628.26,0.00021637,2]
[349958518,1737535875211,-1154.33,0.00021637,2]
[349958519,1737535875221,-500.0,0.00021637,2]
[349958520,1737535875231,-500.0,0.00021637,2]
[349958521,1737535875241,-1232.72,0.00021637,2]
[349958522,1737535875251,-4385.76,0.00021637,2]
[349958523,1737535875260,-500.0,0.00021637,2]
[349958524,1737535875270,-1178.01,0.00021637,2]
[349958525,1737535875280,-500.0,0.00021637,2]
[349958526,1737535875291,-851.04,0.00021637,2]
[349958527,1737535875301,-844.74,0.00021637,2]
[349958528,1737535875309,-500.0,0.00021637,2]
[349958529,1737535875317,-2089.41,0.00021637,2]
[349958530,1737535875327,-577.47,0.00021637,2]
[349958531,1737535875336,-690.97,0.00021637,2]
[349958532,1737535875485,-1722.38,0.00021637,2]
[349958533,1737535875497,-1001.69,0.00021637,2]
[349958534,1737535875507,-799.05,0.00021637,2]
[349958535,1737535875517,-1433.52,0.00021637,2]
[349958536,1737535875527,-680.57,0.00021637,2]
[349958537,1737535875537,-866.15,0.00021637,2]
[349958538,1737535875547,-500.0,0.00021637,2]
[349958539,1737535875557,-500.0,0.00021637,2]
[349958540,1737535875567,-525.26,0.00021637,2]
[349958541,1737535875577,-658.51,0.00021637,2]
[349958542,1737535875587,-1460.47,0.00021637,2]
[349958543,1737535875597,-637.41683959,0.00021637,2]
[349958544,1737535875607,-1012.24,0.00021637,2]
[349958545,1737535875616,-703.88,0.00021637,2]
[349958546,1737535875626,-500.0,0.00021637,2]
[349958547,1737535875635,-500.0,0.00021637,2]
[349958548,1737535875645,-2713.11,0.00021637,2]
[349958549,1737535875654,-2398.07,0.00021637,2]
[349958550,1737535875663,-508.44,0.00021637,2]
[349958551,1737535875673,-500.0,0.00021637,2]
[349958552,1737535875683,-2259.96,0.00021637,2]
[349958553,1737535875693,-500.0,0.00021637,2]
[349958554,1737535875703,-12.21831217,0.00021637,2]
[349958555,1737535875724,-588.54,0.00020815,2]
[349958556,1737535875734,-1529.89168783,0.00021637,2]
[349958557,1737535875743,-1046.31,0.00021637,2]
[349958558,1737535875754,-876.07,0.00021637,2]
[349958559,1737535875765,-2654.27,0.00021637,2]
[349958560,1737535875775,-500.0,0.00021637,2]
[349958561,1737535875784,-588.37,0.00021637,2]
[349958562,1737535875794,-1263.25,0.00021637,2]
[349958563,1737535875803,-623.1,0.00021638,2]
[349958564,1737535875813,-500.0,0.00021638,2]
[349958565,1737535875824,-500.0,0.00021638,2]
[349958566,1737535875834,-500.0,0.00021638,2]
[349958567,1737535875844,-500.0,0.00021638,2]
[349958568,1737535875853,-378.36424764,0.00021638,2]
[349958569,1737535875862,-906.12,0.00021638,2]
[349958570,1737535875871,-500.0,0.00021638,2]
[349958571,1737535875881,-500.0,0.00021638,2]
[349958572,1737535875890,-500.0,0.00021638,2]
[349958573,1737535875900,-557.75,0.00021638,2]
[349958574,1737535875909,-500.0,0.00021638,2]
[349958575,1737535875918,-500.0,0.00021638,2]
[349958576,1737535875928,-523.97,0.00021638,2]
[349958577,1737535875941,-500.0,0.00021638,2]
[349958578,1737535875950,-684.22,0.00021638,2]
[349958579,1737535875961,-500.76,0.00021638,2]
[349958580,1737535875971,-500.0,0.00021638,2]
[349958581,1737535875981,-500.0,0.00021638,2]
[349958582,1737535875990,-500.0,0.00021638,2]
[349958583,1737535875999,-500.0,0.00021638,2]
[349958584,1737535876011,-500.0,0.00021638,2]
[349958585,1737535876020,-500.0,0.00021638,2]
[349958586,1737535876029,-500.0,0.00021638,2]
[349958587,1737535876039,-891.46,0.00021638,2]
[349958588,1737535876048,-626.77,0.00021638,2]
[349958589,1737535876058,-974.67,0.00021638,2]
[349958590,1737535876068,-500.0,0.00021638,2]
[349958591,1737535876077,-500.0,0.00021638,2]
[349958592,1737535876085,-667.94,0.00021638,2]
[349958593,1737535876096,-268.32476013,0.00021638,2]
[349958594,1737535876325,-497.30780419,0.00019445,2]
[349958595,1737535876338,-2.69219581,0.00019445,2]
[349958596,1737535876348,-355.85114449,0.00019445,2]
[349958597,1737535876378,-285.24305118,0.00019445,2]
[349958598,1737535876387,-500.0,0.00019445,2]
[349958599,1737535876397,-588.54,0.00021089,2]
[349958600,1737535876408,-588.54,0.00021363,2]
[349958601,1737535876417,-588.54,0.00021637,2]
[349958602,1737535876426,-424.21524081,0.00021638,2]
[349958603,1737535876442,-478.70999906,0.00021638,2]
[349958604,1737535876451,-720.08,0.00021638,2]
[349958605,1737535876462,-1121.27,0.00021638,2]
[349958606,1737535876471,-761.43,0.00021638,2]
[349958607,1737535876481,-500.0,0.00021638,2]
[349958608,1737535876491,-885.44,0.00021638,2]
[349958609,1737535876501,-593.11,0.00021638,2]
[349958610,1737535876510,-810.91,0.00021638,2]
[349958611,1737535876520,-366.29942876,0.00021638,2]
[349958612,1737535876530,-495.87160072,0.00021638,2]
[349958613,1737535876546,-301.71839928,0.00021638,2]
[349958614,1737535876556,-500.0,0.00021638,2]
[349958615,1737535876566,-500.0,0.00021638,2]
[349958616,1737535876576,-607.39,0.00021638,2]
[349958617,1737535876586,-500.0,0.00021638,2]
[349958618,1737535876596,-500.0,0.00021638,2]
[349958619,1737535876605,-500.0,0.00021638,2]
[349958620,1737535876614,-669.28,0.00021638,2]
[349958621,1737535876623,-500.0,0.00021638,2]
[349958622,1737535876633,-500.0,0.00021638,2]
[349958623,1737535876642,-500.0,0.00021638,2]
[349958624,1737535876652,-500.0,0.00021638,2]